Cogmind - Beta 13 @@@ ROGUE MODE // 2024.07.12 @ 02:34:59 Player: ThatBishHoly Result: Destroyed by G-34 Mercenary with Small Laser Performance ------------- Evolutions (1) 500 Regions Visited (2) 400 Robots Destroyed (37) 185 Value Destroyed (769) 769 Prototype IDs (4) 80 Alien Tech Used (0) 0 Bonus (8) 8 TOTAL SCORE: 1942 Bonus ------- High Alert Combat Kills 8 Cogmind --------- Core Integrity 0/400 Matter 300/300 Energy 96/100 System Corruption 0% Temperature Cool (8) Movement Walking (120) Location -9/Materials Parts ------- > --- POWER (1) -------- (None) > --- PROPULSION (4) --- Aluminum Leg Improved Aluminum Leg > --- UTILITY (2) ------ (None) > --- WEAPON (2) ------- Improved Medium Laser Katana > --- INVENTORY (5) ---- Light Ion Engine Advanced Beam Cannon Advanced Beam Cannon Advanced Beam Cannon Advanced Beam Cannon Peak State ------------ > --- POWER ------------ Improved Ion Engine > --- PROPULSION ------- Aluminum Leg Aluminum Leg Aluminum Leg Improved Aluminum Leg > --- UTILITY ---------- Core Shielding > --- WEAPON ----------- Advanced Beam Cannon Katana > --- INVENTORY -------- Improved Medium Laser Advanced Beam Cannon Advanced Beam Cannon Advanced Beam Cannon [Rating: 15] Favorites ----------- Power Reinforced Ion Engine Engine Reinforced Ion Engine Propulsion Aluminum Leg Leg Aluminum Leg Flight Unit Flight Unit Utility Core Shielding Storage Small Storage Unit Protection Core Shielding Weapon Light Assault Rifle Energy Gun Improved Medium Laser Energy Cannon Advanced Beam Cannon Ballistic Gun Light Assault Rifle Slashing Weapon Katana Build | -11 -10 -9 ------- Run | Yrd Mat Mat Slots Evolved 2 | . . 2 Power . | . . . Propulsion 2 | . . 2 Utility . | . . . Weapon . | . . . Parts Attached 32 | 6 5 21 Power 7 | 1 1 5 Engine 7 | 1 1 5 Core . | . . . Reactor . | . . . Propulsion 15 | 2 3 10 Treads . | . . . Leg 12 | 2 1 9 Wheel . | . . . Hover . | . . . Flight 3 | . 2 1 Utility 2 | 1 . 1 Device . | . . . Storage 1 | 1 . . Processor . | . . . Hackware . | . . . Protection 1 | . . 1 Artifact . | . . . Weapon 8 | 2 1 5 Energy Gun 1 | . . 1 Energy Cannon 1 | . . 1 Ballistic Gun 5 | 2 1 2 Ballistic Cannon . | . . . Launcher . | . . . Special Weapon . | . . . Impact Weapon . | . . . Slashing Weapon 1 | . . 1 Piercing Weapon . | . . . Special Melee Weapon . | . . . Unidentified Prototypes 2 | . . 2 Parts Lost 18 | . 2 16 Power 4 | . 1 3 Propulsion 11 | . 1 10 Utility 1 | . . 1 Weapon 2 | . . 2 Highest Loss Streak 4 | . 1 4 To Critical Strikes . | . . . Average Slot Usage (%) 63 | . 73 59 Engine 7 | . 5 8 Leg 24 | . 23 25 Flight 2 | . 3 1 Storage 3 | . 12 . Protection 5 | . . 7 Energy Gun 1 | . . 2 Energy Cannon 1 | . . 2 Ballistic Gun 10 | . 28 3 Slashing Weapon 5 | . . 7 Naked Turns . | . . . Heaviest Build 17 | 11 11 17 Greatest Support 43 | 20 20 43 Greatest Overweight (x) 4 | 3 . 4 Average Overweight (x) . | . . . Largest Inventory Capacity 8 | 8 8 5 Average Capacity 5 | 7 7 5 Most Carried 5 | 4 5 5 Average Carried 2 | . . 2 Final Capacity 8 | 8 5 5 Final Carried 5 | . 2 5 Class Distribution -------------------- 52% | Mutant 47% | Scavenger-Mutant Dominant Class ---------------- Mutant | -10/Materials Scavenger-Mutant | -9/Materials Resources | -11 -10 -9 ----------- Run | Yrd Mat Mat Matter Collected 677 | 260 143 274 Remotely . | . . . Salvage Created 1270 | . 167 1103 Parts 71 | . 14 57 Haulers Intercepted 2 | . . 2 Recyclers Shooed 3 | . . 3 Parts Field Recycled . | . . . Retrieved Matter . | . . . Parts Self-Destructed . | . . . Prevented . | . . . Kills | -11 -10 -9 ------- Run | Yrd Mat Mat Combat Hostiles Destroyed 28 | . 7 21 Melee 16 | . . 16 Guns 12 | . 7 5 Classes Destroyed 9 | . 2 7 Worker 3 | . . 3 Builder 2 | . . 2 Hauler 2 | . . 2 Recycler 2 | . . 2 Swarmer 11 | . 5 6 Grunt 13 | . 2 11 Brawler 1 | . . 1 Duelist 2 | . . 2 Sentry 1 | . . 1 Best Kill Streak 7 | . 3 7 Combat Bots Only 7 | . 3 7 Max Kills in Single Turn 2 | . 2 1 Gunslinging 1 | . 1 . Exploded . | . . . Melee 1 | . . 1 Uniques/NPCs Destroyed . | . . . Combat | -11 -10 -9 -------- Run | Yrd Mat Mat Hostile Shots Fired 251 | . 60 191 Missed 77 | . 19 58 Damage Taken 2091 | . 415 1676 Core 459 | . 54 405 Absorbed by Shields . | . . . Redirected to Shielding 35 | . . 35 Core Remaining (%) 89 | 100 78 . Volleys Fired 72 | . 31 41 Largest 2 | . 2 2 Hottest 56 | . 40 56 Shots Fired 113 | . 62 51 Gun 113 | . 62 51 Cannon . | . . . Launcher . | . . . Special . | . . . Kinetic 107 | . 62 45 Thermal 6 | . . 6 Explosive . | . . . Electromagnetic . | . . . Robot Hit Streak 8 | . 6 8 Robot Miss Streak 7 | . 7 4 Penetration Max . | . . . Secondary Targets 3 | . 3 . Max Gunslinging Chain 1 | . 1 . Shots Hit Robots 119 | . 31 88 Core Hits 49 | . 13 36 Critical Kills . | . . . Critical Parts Destroyed 1 | . . 1 Critical Strikes 11 | . . 11 Burn 2 | . . 2 Destroy 1 | . . 1 Sever 8 | . . 8 Melee Attacks 72 | . . 72 Impact . | . . . Slashing 72 | . . 72 Piercing . | . . . Sneak Attacks 10 | . . 10 Combat Hostiles . | . . . Follow-up Attacks . | . . . Damage Inflicted 2795 | . 321 2474 Guns 703 | . 321 382 Cannons . | . . . Explosions . | . . . Melee 2087 | . . 2087 Ramming 5 | . . 5 Kinetic 620 | . 321 299 Thermal 83 | . . 83 Explosive . | . . . Electromagnetic . | . . . Impact . | . . . Slashing 2087 | . . 2087 Piercing . | . . . Highest Corruption . | . . . Average Corruption . | . . . Corruption Purged . | . . . Corruption Blocked . | . . . Overload Shots . | . . . Overflow Damage 248 | . . 248 Projectiles . | . . . Explosions . | . . . Melee 248 | . . 248 Knockbacks . | . . . Impact . | . . . Kinetic . | . . . Secondary . | . . . Self-Inflicted Damage 2 | . . 2 Shots . | . . . Rammed 3 | . . 3 Targets Rammed 3 | . . 3 Kicked . | . . . Crushed . | . . . Highest Temperature 72 | . 20 72 Average Temperature 13 | . 9 15 Received Heat Transfer 723 | . 135 588 Siege Activations . | . . . Robots Corrupted . | . . . Combat Hostiles . | . . . Parts Fried . | . . . Impact Corruptions . | . . . Robots Melted . | . . . Combat Hostiles . | . . . Parts Melted 1 | . . 1 Heat Transferred 333 | . . 333 Parts Sabotaged . | . . . Parts Stolen . | . . . Parts Stripped . | . . . Power Chain Reactions . | . . . Alert | -11 -10 -9 ------- Run | Yrd Mat Mat Peak Influence 390 | . 200 390 Initial 84 | . . 84 Average 175 | . 73 226 Maximum Alert Level 2 | . 1 2 Low Security (%) 54 | 100 96 34 Level 1 45 | . 3 64 Level 2 . | . . . Level 3 . | . . . Level 4 . | . . . Level 5 . | . . . High Security . | . . . Max Security . | . . . Squads Dispatched 3 | . . 3 Investigation 1 | . . 1 Extermination . | . . . Reinforcement 2 | . . 2 Assault . | . . . Garrison . | . . . Intercept . | . . . Searches Triggered . | . . . Construction Impeded . | . . . Haulers Reinforced . | . . . Active Scanning Responses . | . . . Cargo Convoy Interrupts . | . . . Stealth | -11 -10 -9 --------- Run | Yrd Mat Mat Distress Signals 2 | . 1 1 Communications Jammed . | . . . Distress Signals . | . . . Times Spotted 52 | . 13 39 Peak Tracking Total 12 | . 5 12 Tactical Retreats 2 | . . 2 Traps | -11 -10 -9 ------- Run | Yrd Mat Mat Traps Triggered 1 | . . 1 Indirectly . | . . . Trap Hack Attempts . | . . . Triggered . | . . . Disarmed . | . . . Reprogrammed . | . . . Reused . | . . . Traps Extracted . | . . . Installed . | . . . Triggered . | . . . Machines | -11 -10 -9 ---------- Run | Yrd Mat Mat Machines Disabled . | . . . Max in Single Turn . | . . . Machines Repaired . | . . . Machines Dismantled . | . . . Machines Sabotaged . | . . . Overloaded Fab Kills . | . . . Hacking | -11 -10 -9 --------- Run | Yrd Mat Mat Machines Accessed 5 | . 3 2 Terminals 5 | . 3 2 Fabricators . | . . . Repair Stations . | . . . Recycling Units . | . . . Scanalyzers . | . . . Garrison Access . | . . . Total Hacks 16 | . 8 8 Successful 6 | . 1 5 Failed 10 | . 7 3 Catastrophic 1 | . . 1 Database Lockouts . | . . . Manual . | . . . Terminals 16 | . 8 8 Fabricators . | . . . Repair Stations . | . . . Recycling Units . | . . . Scanalyzers . | . . . Garrison Access . | . . . Terminal Hacks 6 | . 1 5 Robot Analysis 1 | . . 1 Prototype ID Bank 1 | . 1 . Emergency Access Points 2 | . . 2 Terminal Index 1 | . . 1 Alert Level 1 | . . 1 Fabricator Hacks . | . . . Repair Station Hacks . | . . . Recycling Unit Hacks . | . . . Scanalyzer . | . . . Garrison Access Hacks . | . . . Unauthorized Hacks . | . . . Terminals . | . . . Fabricators . | . . . Repair Stations . | . . . Recycling Units . | . . . Scanalyzers . | . . . Garrison Access . | . . . Data Cores Recovered . | . . . Used . | . . . Hacking Detections 5 | . 3 2 Full Trace Events 2 | . 1 1 Feedback Events . | . . . Feedback Blocked . | . . . Robot Schematics Acquired . | . . . Robots Built . | . . . Authchips . | . . . Time . | . . . Total Robot Build Rating . | . . . Part Schematics Acquired . | . . . Parts Built . | . . . Authchips . | . . . Time . | . . . Total Part Build Rating . | . . . Parts Repaired . | . . . Time . | . . . Parts Recycled . | . . . Recycled Matter . | . . . Retrieved Matter . | . . . Retrieved Components . | . . . Parts Scanalyzed . | . . . Part Schematics Acquired . | . . . Parts Damaged . | . . . Bothacking | -11 -10 -9 ------------ Run | Yrd Mat Mat Used RIF Installer . | . . . Robots Hacked . | . . . Non-combat . | . . . Combat . | . . . Robot Hacks Applied . | . . . Relay Couplers Released . | . . . Fabnet Peak Effective % . | . . . Robots Rewired . | . . . Allies Hacked . | . . . Hacks Repelled . | . . . Allies | -11 -10 -9 -------- Run | Yrd Mat Mat Total Allies . | . . . Largest Group . | . . . Highest-Rated Group . | . . . Highest-Rated Ally . | . . . Total Orders . | . . . Ally Attacks . | . . . Total Damage . | . . . Kills . | . . . Allies Corrupted . | . . . Allies Melted . | . . . Intel | -11 -10 -9 ------- Run | Yrd Mat Mat Robot Analysis Total 1 | . . 1 Derelict Logs Recovered . | . . . Drone Launches . | . . . Drone Recoveries . | . . . Exploration | -11 -10 -9 ------------- Run | Yrd Mat Mat Turns Passed 1223 | 60 325 838 Spaces Moved 718 | 45 263 410 Core 79 | 14 . 65 Treads . | . . . Legs 481 | 31 153 297 Wheels . | . . . Hover . | . . . Flight 158 | . 110 48 Fastest Speed 35 | 50 37 35 Average Speed 109 | 108 85 125 Slowest Speed 250 | 200 120 250 Overloaded Moves . | . . . Propulsion Burnouts . | . . . Robots Hopped . | . . . Cave-ins Triggered . | . . . Exploration Rate (%) 26 | 4 44 31 Regions Visited 2 Branch Regions . Pre-discovered Areas . | . . . Known Exits Taken . | . . . Unknown Exits Taken 2 | 1 1 . Scrap Searched . | . . . Spaces Dug . | . . . Terrain Destroyed . | . . . Melee . | . . . Projectile . | . . . AOE . | . . . Terrain Rammed . | . . . Walls Destroyed . | . . . Machines Disabled . | . . . Actions | -11 -10 -9 --------- Run | Yrd Mat Mat Total 944 | 56 307 581 Wait 10 | . . 10 Move 716 | 44 262 410 Hop . | . . . Pick Up 32 | 6 6 20 Fast Attach 2 | . . 2 Attach 23 | 6 3 14 Detach . | . . . Swap 7 | . 2 5 Drop 7 | . 3 4 Fire 72 | . 31 41 Melee 72 | . . 72 Ram 3 | . . 3 Kick . | . . . Crush . | . . . Escape Stasis . | . . . Rewire . | . . . Trap . | . . . Miscellaneous . | . . . Route ------- -11/Scrapyard -10/Materials -9/Materials (discovered 1 exit: [*Min]) History --------- Turn | Location | Event 15 | -11/Scrapyard | Discovered new exit (range 16) 61 | -11/Scrapyard | Entered Materials 300 | -10/Materials | Build established: Mutant 364 | -10/Materials | Discovered new exit (range 15) 386 | -10/Materials | Entered another Materials area 386 | -9/Materials | Evolved 2 slots: Propulsion x2 445 | -9/Materials | Lost 3 parts (2n1w) 684 | -9/Materials | Lost 4 parts (1p2n1w) 697 | -9/Materials | Core integrity fell below 50% 811 | -9/Materials | Destroyed 7 combat bots 815 | -9/Materials | Lost 4 parts (4n) 1185 | -9/Materials | Core integrity fell below 20% 1213 | -9/Materials | Discovered new exit (range 16) 1224 | -9/Materials | Destroyed by G-34 Mercenary with Small Laser Last Messages --------------- 01141_ An alarm sounds. 01141_ ALERT: Alarm triggered, dispatching investigation squad. 01148_ ALERT: Hostiles spotted, dispatching reinforcements to Terminal M012. 01158_ U-05 Engineer lays Concrete. 01175_ Core Shielding destroyed. 01178_ A-02 Transporter destroyed. 01184_ K-01 Serf cleans the Fusion Modulator. 01192_ Aluminum Leg destroyed. 01193_ Destroyed Heat Sink. 01196_ Critical hit (Burn: +37). 01198_ Aluminum Leg destroyed. 01201_ Imp. Ion Engine destroyed. 01206_ U-05 Engineer builds a Door. 01208_ K-01 Serf cleans the Fusion Modulator. 01213_ EXIT=FOUND 01217_ K-01 Serf destroyed. 01218_ K-01 Serf collects debris. 01219_ Acquired Lgt. Ion Engine. 01223_ K-01 Serf collects debris. Map ----- +----------------------------------------------------+ | ???????# ?????? ??????????????????????????? | | ???????# #?????? ??????????????????????????? | | ???????# #??????#[= #??????????????????????????? | | ???????# #??????#[[!#??????????????????????????? | | ???????# #??????#%[!#??????????????????????????? | | ???????# #??????#[[ +??????????????????????????? | | ?####### ##?????#! #??????????????????????????? | | ? # T#?????# #??????????????????????????? | | ?""""" # #??????# #??????????????????????????? | | ?""""" # #??????# #?#??####??????????????????? | | """"" # #??????# # ? =!???????????????????? | | """"" + #??????# # """ ] #?????????????????? | | """"" # #??????# + "R #??????????????????? | | """"" # #??????# # """ = #??????????????????? | | ?""""" # ######## #?? ???????????????????? | | ? # #????####??????????????????? | | ######## #########/#######?????????????????????? | | ???????# #?# = #?????????????????????? | | ?????? / #?# #?????????????????????? | | ???? # #?# """ """ !!! #?????????????????????? | | ??? # #?# """ """ !!! #????????????????????? | | ??####?# #?# """ """ !!! ##????????????????????? | | ???######+#### #????????####?????????? | | ???# ####g############## #?????????? | | ???# ! #### Y Y % k r ????????? | | ???# + g g @ < ????????? | | ???# #### k k r k ????????? | | ???# #??#u """ ####+## #?????????? | | ???# #??# g""" #?????????"!" #?????????? | | ???# #??# """ #???????????????????????? | | ???# #??# #???????????????????????? | | ???############## w #???????????????????????? | | ??????# # """ #???????????????????????? | | ??????# # """ #???????????????????????? | | ??????# ![ %#% """ ##??????????????????????? | | ??????#! % %+% + ""??????????????????? | | #######*% ] %#%% ## ????????????????????? | | % =%!+%!* ### ##???????????????????????? | | #######! #?# #????????????????????????? | | ??????#= #?# #????????????????????????? | | ??????###########?# #????????????????????????? | | ?????????????????? #????????????????????????? | | #######??????????? #????????????????????????? | | #??????????? #????????????????????????? | | " #???????????# #????????????????????????? | | " #???????????? #????????????????????????? | | " ] #???????????? #????????????????????????? | | " #???????????? #????????????????????????? | | " " " #???????????? #????????????????????????? | | "R" #????????????## ?????????????????????????? | +----------------------------------------------------+ Best States ------------- Heat Dissipation 28 Energy Generation 12 Energy Capacity 265 Matter Stores 300 Matter Capacity 300 Sight Range 16 Terrain Scan Density 10 Core Shielding 20 Evasion (%) 62 Item Schematics ----------------- None Robot Schematics ------------------ None Fabricated ------------ Nothing Alien Tech Used ----------------- None Achievements -------------- None Challenges ------------ None Game ------ Seed ProjectionMiniLattice Manual? 0 Play Time 00:16:49 Cumulative 58.1 hours Start 2024.07.12 @ 02:20:12 End 2024.07.12 @ 02:34:59 Sessions 1 Manual Loads 0 Difficulty Rogue Special Mode None Game No. 158 Rogue 158 Adventurer 0 Explorer 0 Win Type - Total 0 Types 0/0/0/0/0/0/0/0/0 Lore% 22 Gallery% 41 Achievement% 26 Wizard Run 0 Options --------- Layout 0 ASCII 0 Keyboard 0 Movement Arrows Keybinds 0 Fullscreen 1 Font 12/Smallcaps Map View 38x28 Zoom Use 96% Tactical HUD 1 Map Filters NONE Filters NONE Steam SD RUN: df4e9a3d-3996-49e1-9770-fd62ff1986a7